bitfinex/quotes_ETHUSD_20250415
["timestamp","ask_amount","ask_price","bid_price","bid_amount"]
[1744694038207,17.50449,1641.6,1641.2,10.34253504]
[1744694042160,5.321,1641.6,1641.5,0.7839]
[1744694043591,6.09261,1641.4,1641.2,3.44973504]
[1744694043799,12.18526,1641.4,1641.2,3.44973504]
[1744694044511,6.093,1641.3,1641.0,0.7512]
[1744694044696,6.09323,1641.2,1640.9,0.7512]
[1744694044890,5.32,1641.3,1641.0,6.09356]
[1744694045404,5.32,1641.3,1641.0,6.15449346]
[1744694045610,5.32,1641.3,1641.1,6.09344]
[1744694046196,5.32,1641.3,1641.0,6.09356]
[1744694048304,5.32,1641.3,1641.0,8.92891968]
[1744694048603,5.32,1641.3,1641.1,6.85058]
[1744694049775,12.18438,1641.5,1641.1,6.85058]
[1744694049974,17.50538,1641.5,1641.1,6.85058]
[1744694052275,6.09276,1641.3,1641.1,0.7574]
[1744694052476,6.09273,1641.3,1640.9,0.8281]
[1744694052724,6.09326,1641.2,1640.9,0.8281]
[1744694052890,6.09273,1641.3,1640.9,13.01626]
[1744694053088,0.7543,1641.4,1641.1,6.09342]
[1744694053396,12.16733,1641.5,1641.1,13.01482]
[1744694053592,18.25957,1641.5,1641.1,6.9214]
[1744694053802,6.09244,1641.4,1641.1,6.9214]
[1744694054908,6.0753,1641.5,1641.2,6.09288]
[1744694055108,12.16748,1641.5,1641.1,6.9215]
[1744694055277,18.25971,1641.5,1641.1,6.9215]
[1744694056124,6.09238,1641.4,1641.1,6.9215]
[1744694057318,6.09275,1641.3,1641.1,0.8281]
[1744694058524,6.0931,1641.2,1640.9,9.88364]
[1744694058686,6.09348,1641.1,1640.8,6.56149708]
[1744694058891,6.88675,1641.0,1640.6,12.97994]
[1744694059107,6.88675,1641.0,1640.7,6.09493]
[1744694060490,6.88675,1641.0,1640.7,6.55799902]
[1744694061822,5.321,1641.1,1640.8,6.09434]
[1744694062303,11.41447,1641.1,1640.8,6.09434]
[1744694062819,11.41447,1641.1,1640.7,6.15585227]
[1744694063122,11.41447,1641.1,1640.7,12.25060227]
[1744694063613,17.50816,1641.1,1640.7,6.09475]
[1744694064424,0.757,1640.9,1640.6,6.8848]
[1744694065439,6.85133,1640.9,1640.5,18.02651968]
[1744694066037,6.85133,1640.9,1640.5,11.93086968]
[1744694066645,12.94576,1640.9,1640.5,11.93086968]
[1744694067837,12.94576,1640.9,1640.5,3.0]
[1744694067838,6.09462,1640.8,1640.5,3.0]
[1744694068138,6.09462,1640.8,1640.5,6.09568]
[1744694068315,12.874632,1640.8,1640.4,6.89069]
[1744694068640,6.779782,1640.8,1640.4,12.98658]
[1744694068821,6.09462,1640.8,1640.4,12.98658]
[1744694069140,0.757,1640.9,1640.5,6.09542]
[1744694069339,0.757,1640.9,1640.6,12.19033]
[1744694069520,0.757,1640.9,1640.6,6.09516]
[1744694069725,6.85123,1640.9,1640.6,6.09516]
[1744694069928,0.757,1640.9,1640.6,6.09516]
[1744694070231,6.85136,1640.9,1640.6,6.09514]
[1744694070435,0.757,1640.9,1640.6,12.19031]
[1744694070622,0.757,1640.9,1640.6,6.09514]
[1744694070960,12.18803,1641.0,1640.6,6.91328784]
[1744694071241,12.18803,1641.0,1640.6,6.85234]
[1744694071742,17.50903,1641.0,1640.6,6.85234]
[1744694072340,12.18803,1641.0,1640.6,6.85234]
[1744694072542,17.50903,1641.0,1640.6,6.85234]
[1744694072724,6.09421,1640.9,1640.6,6.85234]
[1744694074146,11.41495,1641.0,1640.6,6.91328672]
[1744694074312,5.321,1641.0,1640.8,6.09455]
[1744694075251,5.321,1641.3,1641.0,6.09384]
[1744694075617,11.41373,1641.3,1641.0,6.09384]
[1744694076051,13.247104,1641.3,1640.9,9.72872968]
[1744694076420,13.247104,1641.3,1640.9,9.78966671]
[1744694077150,7.154374,1641.3,1640.9,9.78966671]
[1744694077354,0.8276,1641.4,1641.1,6.09344]
[1744694077656,0.8276,1641.4,1641.1,12.18669]
[1744694077943,0.8276,1641.4,1641.1,6.09325]
[1744694078348,6.09282,1641.3,1641.0,6.15470072]
[1744694078549,6.09282,1641.3,1641.0,3.0]
[1744694079856,8.753488,1641.4,1641.0,9.09381]
[1744694080155,6.9202,1641.4,1641.1,6.09347]
[1744694081556,6.9202,1641.4,1641.0,15.18752]
[1744694081762,0.833,1641.2,1641.0,3.0]
[1744694081956,6.92624,1641.2,1641.0,3.0]
[1744694082758,0.833,1641.2,1641.0,3.0]
[1744694083252,0.833,1641.2,1640.9,6.09401]
[1744694083253,6.92612,1641.2,1640.9,6.09401]
[1744694083956,6.87101,1641.4,1641.0,6.09371]
[1744694084160,14.182941,1641.4,1641.0,6.09371]
[1744694084635,6.09273,1641.3,1641.0,6.09371]
[1744694084836,8.090211,1641.4,1641.0,12.18742]
[1744694085250,6.09274,1641.3,1640.9,6.92325]
[1744694085433,6.09274,1641.3,1640.9,13.01728]
[1744694086363,6.09274,1641.3,1640.9,6.92323]
[1744694086364,12.18569,1641.3,1640.9,6.92323]
[1744694086749,6.09312,1641.2,1640.9,6.92323]
[1744694087053,6.88882,1641.2,1640.8,8.92992968]
[1744694087264,0.7957,1641.2,1640.9,6.09395]
[1744694089178,14.4115491,1641.3,1640.9,6.09395]
[1744694089663,8.3185891,1641.3,1640.9,12.18801]
[1744694089865,8.3185891,1641.3,1641.0,6.0937]
[1744694090067,2.026701,1641.4,1641.1,6.09341]
[1744694090269,0.8075,1641.4,1641.1,6.09341]
[1744694090458,6.89987,1641.4,1641.1,6.09341]
[1744694094238,0.8075,1641.4,1641.1,12.18676]
[1744694094991,0.8075,1641.4,1641.1,6.09335]
[1744694095488,0.8075,1641.4,1641.1,12.18664]
[1744694095869,0.8075,1641.4,1641.0,3.66795968]
[1744694095870,6.1167,1641.6,1641.3,6.84423]
[1744694096189,6.1167,1641.6,1641.4,6.09218]
[1744694096388,5.318,1641.6,1641.4,6.09218]
[1744694097258,5.318,1641.6,1641.3,6.84439]
[1744694097791,11.40963,1641.6,1641.3,3.0]
[1744694097990,11.40963,1641.6,1641.3,9.09272]
[1744694098174,5.318,1641.6,1641.3,15.18531]
[1744694098673,5.318,1641.6,1641.3,9.09259]
[1744694098995,11.40968,1641.6,1641.3,9.09259]
[1744694099581,5.318,1641.6,1641.3,9.86529]
[1744694100365,5.318,1641.6,1641.5,6.09198]
[1744694100690,5.318,1641.6,1641.4,12.18446]
[1744694100899,5.318,1641.6,1641.4,6.09211]
[1744694101051,5.318,1641.9,1641.6,6.09148]
[1744694101245,11.291875,1641.9,1641.6,6.09148]
[1744694101446,5.318,1641.9,1641.6,6.15238937]
[1744694101680,5.318,1641.9,1641.7,6.09108]
[1744694102093,5.318,1641.9,1641.5,6.84571]
[1744694102303,0.7984,1641.8,1641.5,6.09191]
[1744694102510,0.7984,1641.8,1641.5,6.09181]
[1744694103115,0.7984,1641.8,1641.5,12.18364]
[1744694103311,5.318,1641.9,1641.6,6.09144]
[1744694103502,6.1021,1641.9,1641.6,6.09144]
[1744694104502,12.19263,1641.9,1641.6,6.09144]
[1744694104973,12.19968,1642.3,1641.8,8.92622968]
[1744694105302,6.88302,1642.2,1641.8,6.09087]
[1744694105654,6.88302,1642.2,1641.8,12.18157]
[1744694105917,0.7934,1642.2,1641.9,6.0905]
[1744694106204,5.317,1642.3,1642.0,6.08992]
[1744694106364,5.317,1642.3,1642.0,12.17984]
[1744694106775,5.317,1642.3,1642.0,6.08992]
[1744694109009,5.317,1642.3,1642.0,12.17986]
[1744694109406,5.317,1642.3,1642.0,6.08992]
[1744694109794,5.317,1642.3,1642.1,12.17922]
[1744694110317,5.317,1642.3,1642.1,6.0896]
[1744694111024,5.317,1642.3,1642.1,7.307569]
[1744694111201,6.87949,1642.2,1641.8,0.7901]
[1744694111385,6.87949,1642.2,1641.8,3.0]
[1744694111386,6.08997,1642.1,1641.8,3.0]
[1744694111913,6.87949,1642.2,1641.8,3.0]
[1744694112073,12.96913,1642.2,1641.8,9.0907]
[1744694112709,6.08976,1642.1,1641.8,3.0]
[1744694112921,6.91827,1642.0,1641.8,3.0]
[1744694113716,6.09083,1641.9,1641.5,6.09193]
[1744694114018,6.09083,1641.9,1641.3,0.7722]
[1744694114019,6.86477,1641.7,1641.3,0.7722]
[1744694114226,6.86477,1641.7,1641.3,6.86464]
[1744694114384,6.86477,1641.7,1641.3,7.33152928]
[1744694115803,6.86477,1641.7,1641.4,6.09229]
[1744694116423,6.09088,1641.8,1641.5,6.09182]
[1744694116792,12.18197,1641.8,1641.4,8.92754968]
[1744694117125,6.09138,1641.7,1641.4,2.83535968]
[1744694117926,0.7709,1641.6,1641.3,4.23908928]
[1744694118246,6.8627,1641.6,1641.3,4.23908928]
[1744694118827,6.8627,1641.6,1641.3,3.7722]
[1744694119025,12.95457,1641.6,1641.3,3.0]
[1744694119229,12.95457,1641.6,1640.9,6.09421]
[1744694119230,0.7709,1641.6,1641.0,6.09381]
[1744694119540,0.7709,1641.3,1641.0,3.0]
[1744694119752,12.17899,1641.5,1641.1,15.02212968]
[1744694119925,12.17899,1641.5,1641.1,9.68896968]
[1744694119926,18.27121,1641.5,1641.1,9.68896968]
[1744694122500,12.18508,1641.4,1641.0,13.04414277]
[1744694123340,6.09301,1641.3,1641.0,6.49492565]
[1744694123545,12.18607,1641.3,1641.0,5.83535968]
[1744694124132,6.09311,1641.2,1641.0,2.83535968]
[1744694125560,12.18599,1641.3,1641.0,2.83535968]
[1744694125760,6.09298,1641.3,1641.0,2.83535968]
[1744694126127,6.09239,1641.4,1641.0,8.99000163]
[1744694126460,12.18499,1641.4,1641.0,8.99000163]
[1744694126838,6.09273,1641.3,1641.0,2.83535968]
[1744694127233,12.18571,1641.3,1641.0,2.83535968]
[1744694127435,6.09311,1641.2,1641.0,2.83535968]
[1744694130950,6.90261,1641.2,1641.0,2.83535968]
[1744694131457,6.90261,1641.2,1640.9,6.87365]
[1744694131658,6.90261,1641.2,1640.9,12.96772]
[1744694131659,0.8095,1641.2,1640.9,12.96772]
[1744694131860,0.8095,1641.2,1640.9,6.87365]
[1744694133726,0.7737,1641.4,1641.1,6.09335]
[1744694133927,6.09273,1641.3,1641.0,8.92913968]
[1744694137048,12.18568,1641.3,1641.0,2.83535968]
[1744694137258,6.0931,1641.2,1640.8,5.83535968]
[1744694137457,12.99006,1641.1,1640.8,2.83535968]
[1744694138465,6.09401,1641.0,1640.7,3.8126]
[1744694138765,6.09464,1640.8,1640.5,0.8126]
[1744694138967,6.1187,1641.2,1640.8,6.90704]
[1744694139166,6.1187,1641.2,1640.8,6.96798046]
[1744694139167,12.21198,1641.2,1640.8,6.96798046]
[1744694139475,12.21198,1641.2,1640.8,6.96797977]
[1744694139639,11.40928,1641.2,1640.9,6.09419]
[1744694141283,11.40874,1641.3,1640.9,15.66392581]
[1744694141580,11.40874,1641.3,1640.9,9.56973581]
[1744694141784,5.316,1641.3,1640.8,6.90715]
[1744694141953,5.316,1641.3,1640.8,9.74250968]
[1744694142157,11.40874,1641.3,1640.9,6.09397]
[1744694142583,17.50173,1641.3,1640.9,6.09397]
[1744694142881,6.09312,1641.2,1640.8,9.74232968]
[1744694143174,11.40873,1641.3,1640.8,3.70889865]
[1744694143379,5.316,1641.3,1640.8,9.74248968]
[1744694143589,11.40886,1641.3,1640.9,6.09408]
[1744694143779,5.316,1641.3,1641.0,8.98993382]
[1744694144477,5.316,1641.3,1641.0,8.92899968]
[1744694144646,11.40876,1641.3,1641.0,6.09364]
[1744694145179,11.40876,1641.3,1640.9,6.09416]
[1744694145674,11.40876,1641.3,1640.9,12.18821]
[1744694147090,5.316,1641.3,1641.1,6.09331]
[1744694147248,5.316,1641.3,1641.0,9.74494159]
[1744694147456,5.316,1641.3,1641.0,9.68400968]
[1744694148197,5.316,1641.3,1641.0,9.7449416]
[1744694148901,5.316,1641.3,1641.0,9.7449116]
[1744694149195,5.316,1641.3,1641.0,9.68397968]
[1744694150254,11.40877,1641.3,1641.0,9.68397968]
[1744694150551,11.40877,1641.3,1641.0,6.84862]
[1744694150751,17.50176,1641.3,1641.0,0.7549]
[1744694150951,6.09335,1641.2,1640.8,6.92424]
[1744694151194,0.7539,1641.1,1640.8,13.01867]
[1744694151358,6.09335,1641.2,1640.8,6.92413]
[1744694151722,6.09358,1641.1,1640.8,3.8297]
[1744694151994,6.09315,1641.2,1640.8,9.92422]
[1744694152577,6.09315,1641.2,1640.8,16.07956172]
[1744694152783,6.09315,1641.2,1640.8,16.01862]
[1744694153293,12.16265,1641.3,1640.9,6.09408]
[1744694153592,18.25568,1641.3,1640.9,6.09408]
[1744694153794,12.16265,1641.3,1640.9,6.09408]
[1744694154156,18.2556,1641.3,1640.9,6.09408]
[1744694154797,18.2556,1641.3,1640.9,7.42527013]
[1744694155011,12.16265,1641.3,1640.9,6.15513568]
[1744694155215,18.2556,1641.3,1640.9,8.99037536]
[1744694156820,6.09311,1641.2,1640.9,8.99037536]
[1744694156975,6.09311,1641.2,1640.9,8.92943968]
[1744694159121,6.8687,1641.1,1640.8,3.0]
[1744694159331,12.96251,1641.1,1640.7,7.31298881]
[1744694160721,6.8687,1641.1,1640.8,6.09455]
[1744694163025,0.775,1641.1,1640.8,12.24987952]
[1744694163208,12.17497,1641.3,1640.9,6.09417]
[1744694164342,6.87376,1641.2,1640.8,6.09457]
[1744694164549,12.96711,1641.2,1640.8,6.0944]
[1744694164922,0.7805,1641.3,1641.0,6.09384]
[1744694165122,6.0945,1641.5,1641.1,6.09339]
[1744694165317,18.27893,1641.5,1641.1,6.09339]
[1744694165832,6.09245,1641.4,1641.1,6.09339]
[1744694166449,6.09328,1641.2,1640.8,9.09454]
[1744694166746,6.09355,1641.1,1640.8,9.09454]
[1744694166907,0.7525,1641.3,1641.0,6.09366]
[1744694168644,13.00506,1641.4,1641.0,6.15459327]
[1744694168850,6.91247,1641.4,1641.0,12.18732]
[1744694170658,13.00504,1641.4,1641.0,6.09366]
[1744694170833,14.836944,1641.4,1641.0,6.09366]
[1744694171553,6.09276,1641.3,1641.0,6.09366]
[1744694173059,6.09276,1641.3,1640.7,6.54997776]
[1744694173060,0.816,1641.1,1640.7,7.37617776]
[1744694173238,6.90975,1641.1,1640.7,6.92103]
[1744694174050,13.00346,1641.1,1640.7,6.92103]
[1744694175957,6.09386,1641.0,1640.7,6.92103]
[1744694176167,12.188,1641.0,1640.7,3.0]
[1744694177259,6.90948,1641.1,1640.7,11.93030968]
[1744694177490,6.90948,1641.1,1640.7,11.93013968]
[1744694177782,11.40716,1641.2,1640.8,13.01513]
[1744694178348,11.40716,1641.2,1640.9,6.09412]
[1744694178976,5.314,1641.2,1640.9,6.09412]
[1744694179158,5.314,1641.2,1641.0,0.8261]
[1744694180288,11.40711,1641.2,1641.0,0.8261]
[1744694181560,9.89675765,1641.6,1641.1,6.09347]
[1744694181561,17.49848,1641.5,1641.1,6.09347]
[1744694181763,6.09238,1641.4,1641.1,6.09347]
[1744694184768,18.13773582,1641.5,1641.1,6.09347]
[1744694185083,5.95315582,1641.5,1641.2,6.84554]
[1744694185290,5.314,1641.5,1641.2,6.84554]
[1744694185486,5.314,1641.5,1641.2,12.93845]
[1744694186001,11.40612,1641.5,1641.2,6.84541]
[1744694186155,6.09241,1641.4,1641.1,6.09344]
[1744694186698,17.4984,1641.5,1641.1,6.09344]
[1744694186897,19.4230958,1641.5,1641.1,6.09344]
[1744694187195,7.84022797,1641.6,1641.2,6.91695]
[1744694187505,7.84022797,1641.6,1641.2,6.09275]
[1744694187797,6.0921,1641.5,1641.2,6.09275]
[1744694187956,6.87047,1641.6,1641.2,6.15367486]
[1744694188156,6.87047,1641.6,1641.3,6.09271]
[1744694189000,0.7788,1641.6,1641.3,6.09271]
[1744694189994,6.87043,1641.6,1641.3,6.09271]
[1744694192158,6.87043,1641.6,1641.2,6.09275]
[1744694192357,6.87043,1641.6,1641.2,3.0]
[1744694192358,6.09225,1641.5,1641.2,3.0]
[1744694192795,6.09285,1641.3,1640.9,6.91116]
[1744694193004,6.09285,1641.3,1641.0,3.0]
[1744694194503,12.1858,1641.3,1641.0,3.0]
[1744694194857,6.09285,1641.3,1641.0,3.0]
[1744694197262,12.18581,1641.3,1641.0,3.0]
[1744694197992,6.09285,1641.3,1641.0,3.0]
[1744694198184,12.18584,1641.3,1641.0,3.0]
[1744694198388,6.09347,1641.1,1640.7,0.8128]
[1744694198560,6.86236,1641.0,1640.6,6.90799]
[1744694198869,0.7684,1641.0,1640.7,6.09482]
[1744694200798,6.86244,1641.0,1640.7,3.0]
[1744694204696,6.86244,1641.0,1640.7,6.09492]
[1744694205302,12.95653,1641.0,1640.6,6.90792]
[1744694205600,6.86244,1641.0,1640.6,13.00306]
[1744694206207,6.86244,1641.0,1640.7,6.09493]
[1744694207615,0.7684,1641.0,1640.7,6.09493]
[1744694208177,6.86236,1641.0,1640.7,6.09493]
[1744694212012,6.09434,1640.9,1640.6,6.90809]
[1744694212211,6.89694,1640.8,1640.5,3.0]
[1744694212413,12.99181,1640.8,1640.5,3.0]
[1744694213111,6.89694,1640.8,1640.5,3.0]
[1744694213720,12.99172,1640.8,1640.5,3.0]
[1744694214019,6.89688,1640.8,1640.5,3.0]
[1744694214517,0.8021,1640.8,1640.5,9.0956]
[1744694214819,0.8021,1640.8,1640.5,9.09557]
[1744694218247,0.8317,1641.0,1640.5,5.83535968]
[1744694218538,18.32978,1641.0,1640.6,6.0952]
[1744694220539,6.09422,1640.9,1640.6,6.0952]
[1744694222244,12.23573,1641.0,1640.6,12.19036]
[1744694222556,12.23573,1641.0,1640.6,13.00716]
[1744694222841,18.32979,1641.0,1640.6,6.91196]
[1744694224345,6.09421,1640.9,1640.6,6.91196]
[1744694224708,6.09421,1640.9,1640.5,9.09563]
[1744694225347,7.317801,1640.9,1640.5,9.09563]
[1744694225640,6.09471,1640.8,1640.5,9.09563]
[1744694226141,6.1417,1641.0,1640.5,5.83535968]
[1744694226142,12.23559,1641.0,1640.5,5.83535968]
[1744694226347,11.40389,1641.0,1640.7,6.09484]
[1744694226736,11.40389,1641.0,1640.6,6.85415]
[1744694226737,6.09432,1640.9,1640.6,6.85415]
[1744694227121,6.09432,1640.9,1640.6,0.759]
[1744694227330,6.09463,1640.8,1640.5,9.88051]
[1744694228618,6.89152,1640.9,1640.5,15.97604]
[1744694228823,12.98597,1640.9,1640.5,9.88043]
[1744694229246,6.09463,1640.8,1640.5,9.88043]
[1744694231657,6.09463,1640.8,1640.5,3.7849]
[1744694231835,6.09498,1640.7,1640.5,3.7849]
[1744694232557,12.18952,1640.8,1640.5,3.7849]
[1744694233022,6.09463,1640.8,1640.5,3.7849]
[1744694233674,6.09523,1640.7,1640.4,3.8031]
[1744694233822,6.09551,1640.6,1640.4,3.8031]
[1744694234735,12.19104,1640.6,1640.4,3.8031]
[1744694234939,6.09644,1640.3,1640.0,0.762]
[1744694235234,6.09644,1640.3,1640.0,3.762]
[1744694235542,6.0961,1640.4,1640.0,9.85928]
[1744694235748,6.0961,1640.4,1640.1,6.0971]
[1744694236229,6.0961,1640.4,1640.0,9.85928]
[1744694236558,12.1924,1640.4,1640.0,9.85928]
[1744694237138,6.0961,1640.4,1640.0,9.9202488]
[1744694237721,6.0961,1640.4,1640.0,9.85928]
[1744694237953,6.0961,1640.4,1640.0,15.95666]
[1744694238663,6.09658,1640.3,1640.0,3.0]
[1744694238957,6.09702,1640.2,1640.0,3.0]
[1744694239177,6.09718,1640.1,1640.0,3.0]
[1744694239670,6.8839,1640.3,1639.9,6.09767]
[1744694239839,6.78533,1640.2,1639.9,6.09767]
[1744694240160,12.88238,1640.2,1639.8,9.93018]
[1744694240473,17.50499,1640.2,1639.8,9.93018]
[1744694242062,11.40794,1640.2,1639.8,9.93018]
[1744694242237,5.311,1640.2,1639.9,2.89514874]
[1744694242441,5.311,1640.2,1640.0,6.09756]
[1744694243270,5.311,1640.2,1639.9,8.93205067]
[1744694244362,5.311,1640.2,1639.8,9.93024]
[1744694244363,11.40794,1640.2,1639.8,9.93024]
[1744694244561,6.09727,1640.1,1639.8,9.93024]
[1744694244873,6.09727,1640.1,1639.8,9.93017]
[1744694248165,5.312,1640.5,1640.1,6.85472]
[1744694248365,11.408,1640.5,1640.1,6.85472]
[1744694248792,5.312,1640.5,1640.2,12.19345]
[1744694248948,5.312,1640.5,1640.2,6.09665]
[1744694249147,5.312,1640.5,1640.2,12.19334]
[1744694251040,5.312,1640.5,1640.2,6.09665]
[1744694252473,11.40775,1640.5,1640.2,6.09665]
[1744694253386,19.334002,1640.5,1640.1,6.85472]
[1744694253886,6.09607,1640.4,1640.1,6.85472]
[1744694255562,5.312,1640.5,1640.2,6.09671]
[1744694256669,5.312,1640.5,1640.4,6.09607]
[1744694257190,5.312,1640.5,1640.3,6.89744]
[1744694258883,5.312,1640.5,1640.3,12.99372]
[1744694259396,47.538,1641.1,1640.5,6.8601]
[1744694259696,6.09371,1641.1,1640.7,8.92898067]
[1744694259892,6.09371,1641.1,1640.8,6.09458]
[1744694260198,6.09371,1641.1,1640.7,9.69338067]
[1744694260503,7.394703,1641.1,1640.7,15.78813067]
[1744694261400,11.40176,1641.3,1641.0,6.90922]
[1744694262403,6.09212,1641.5,1641.2,6.0931]
[1744694262696,6.09212,1641.5,1641.2,6.09296]
[1744694262697,5.308,1641.5,1641.2,6.09296]
[1744694263000,11.40011,1641.5,1641.1,6.09345]
[1744694263165,11.40011,1641.5,1641.1,6.56169713]
[1744694263369,11.40011,1641.5,1641.1,9.3956678]
[1744694263588,5.308,1641.5,1641.2,6.09293]
[1744694264302,5.308,1641.5,1641.2,6.09291]
[1744694265019,5.308,1641.5,1641.2,6.09288]
[1744694265494,5.308,1641.5,1641.2,12.18575]
[1744694266196,5.308,1641.5,1641.3,6.09268]
[1744694266788,5.308,1641.5,1641.2,12.18582]
[1744694267377,5.308,1641.5,1641.2,6.09287]
[1744694267983,5.308,1641.5,1641.2,12.18576]
[1744694268267,5.308,1641.5,1641.3,6.0927]
[1744694268477,5.308,1641.5,1641.4,6.09236]
[1744694268676,53.6479,1641.8,1641.4,6.09236]
[1744694268889,53.6479,1641.8,1641.5,6.09198]
[1744694269485,5.307,1641.8,1641.6,12.97697]
[1744694270082,5.307,1641.8,1641.6,12.977]
[1744694270281,5.307,1641.8,1641.7,6.09124]
[1744694270477,6.09013,1642.0,1641.7,6.09124]
[1744694270972,12.18057,1642.0,1641.6,6.88552]
[1744694271371,6.09013,1642.0,1641.6,6.88552]
[1744694271576,12.18051,1642.0,1641.6,6.88552]
[1744694272309,6.09051,1641.9,1641.6,6.88552]
[1744694272915,6.09013,1642.0,1641.6,12.97694]
[1744694273110,6.09013,1642.0,1641.7,6.09118]
[1744694273311,6.09143,1641.7,1641.4,0.8017]
[1744694273516,6.89483,1641.7,1641.4,3.0]
[1744694276922,12.98633,1641.7,1641.4,3.0]
[1744694277415,6.09164,1641.6,1641.3,3.0]
[1744694277580,12.18352,1641.6,1641.3,3.0]
[1744694277785,13.482212,1641.6,1641.3,3.0]
[1744694277985,7.390332,1641.6,1641.3,3.0]
[1744694278517,0.8034,1641.7,1641.4,6.09227]
[1744694279181,12.17988,1641.8,1641.4,12.1845]
[1744694279922,12.17988,1641.8,1641.4,6.09223]
[1744694280109,12.17988,1641.8,1641.4,6.86753]
[1744694280420,12.17988,1641.8,1641.4,12.95971]
[1744694280629,14.006929,1641.8,1641.4,12.95971]
[1744694280915,6.09061,1641.9,1641.5,15.01784067]
[1744694281085,5.302,1642.1,1641.8,6.09068]
[1744694281435,11.39178,1642.1,1641.8,6.09068]
[1744694283212,12.98738,1642.3,1641.9,6.09035]
[1744694283399,12.98735,1642.3,1641.9,6.09035]
[1744694283600,8.732025,1642.3,1641.9,6.09035]
[1744694283836,8.732025,1642.3,1641.9,12.18064]
[1744694284388,8.732025,1642.3,1641.9,6.09029]
[1744694285623,6.89809,1642.3,1641.9,12.18061]
[1744694285803,6.08919,1642.3,1641.9,12.18061]
[1744694286394,6.08919,1642.3,1641.9,6.09029]
[1744694287433,6.0899,1642.1,1641.8,3.7822]
[1744694288331,6.0899,1642.1,1641.8,9.87302]
[1744694290233,12.17999,1642.1,1641.8,3.7822]
[1744694290433,6.0899,1642.1,1641.8,3.7822]
[1744694290598,12.17988,1642.1,1641.8,3.7822]
[1744694290800,6.09027,1642.0,1641.8,3.0]
[1744694292329,6.09104,1641.8,1641.5,0.7769]
[1744694292527,6.09131,1641.7,1641.5,0.7769]
[1744694292733,6.09131,1641.7,1641.5,3.7769]
[1744694293235,6.09104,1641.8,1641.5,3.7769]
[1744694293437,6.09057,1641.9,1641.5,9.86883]
[1744694293744,6.09057,1641.9,1641.5,12.70300067]
[1744694293946,6.09141,1641.7,1641.5,0.7769]
[1744694294239,12.97964,1641.7,1641.4,3.0]
[1744694295004,6.09165,1641.6,1641.4,3.0]
[1744694295208,6.88811,1641.7,1641.4,3.0]
[1744694297433,12.9796,1641.7,1641.4,3.0]
[1744694298138,6.09164,1641.6,1641.4,3.0]
[1744694298906,12.18349,1641.6,1641.3,3.7769]
[1744694299340,12.18348,1641.6,1641.3,3.7769]
[1744694299836,12.18424,1641.5,1641.2,2.83417067]
[1744694300025,12.690648,1641.6,1641.2,8.92712067]
[1744694300231,17.48447,1641.6,1641.2,8.92712067]
[1744694301014,6.09204,1641.5,1641.2,2.83417067]
[1744694301215,6.09204,1641.5,1641.2,8.92720067]
[1744694301738,6.09204,1641.5,1641.2,2.83417067]
[1744694302639,6.09204,1641.5,1641.2,3.0]
[1744694302844,11.39267,1641.6,1641.2,6.09288]
[1744694303047,11.39267,1641.6,1641.2,12.18583]
[1744694304428,5.301,1641.6,1641.4,0.8165]
[1744694304749,11.39253,1641.9,1641.6,6.0916]
[1744694304916,5.302,1641.9,1641.6,12.95344]
[1744694305445,5.302,1641.9,1641.7,6.09123]
[1744694305851,6.08981,1642.1,1641.7,12.18217]
[1744694306049,5.302,1642.2,1641.9,6.09016]
[1744694308441,5.302,1642.2,1642.0,6.8809]
[1744694309569,5.302,1642.2,1642.0,6.8808]
[1744694313380,11.39167,1642.2,1642.0,0.7908]
[1744694313676,6.92217,1642.1,1641.8,3.0]
[1744694313887,13.0122,1642.1,1641.8,3.0]
[1744694314330,5.302,1642.2,1641.9,6.09037]
[1744694314531,5.302,1642.2,1641.9,6.85845]
[1744694315393,5.302,1642.2,1642.0,6.09]
[1744694316890,11.39151,1642.2,1641.9,6.85845]
[1744694317796,5.302,1642.2,1641.9,12.94877]
[1744694317962,5.302,1642.2,1642.0,6.09006]
[1744694318159,5.302,1642.2,1642.0,6.15083503]
[1744694318365,5.302,1642.2,1642.0,6.08994]
[1744694318550,5.302,1642.2,1641.9,6.8587]
[1744694319086,11.39141,1642.2,1641.9,6.8587]
[1744694319296,0.05,1642.4,1642.2,6.08908]
[1744694319454,0.05,1642.4,1642.2,3.65617067]
[1744694320684,0.05,1642.4,1642.2,0.822]
[1744694322607,0.05,1642.4,1642.2,6.91137]
[1744694322995,0.05,1642.4,1642.2,15.89564043]
[1744694323210,0.05,1642.4,1642.3,6.08902]
[1744694324505,0.05,1642.4,1642.3,7.41622]
[1744694325299,0.40638506,1642.5,1642.4,6.08865]
[1744694325912,0.40638506,1642.5,1642.3,0.7772]
[1744694326765,0.40638506,1642.5,1642.3,6.8662]
[1744694327609,0.40638506,1642.5,1642.4,6.08865]
[1744694327772,0.40638506,1642.5,1642.4,9.08865]
[1744694329466,0.40638506,1642.5,1642.4,3.0]
[1744694329667,0.40638506,1642.5,1642.4,9.08865]
[1744694330583,0.40638506,1642.5,1642.4,9.54906817]
[1744694331514,0.40638506,1642.5,1642.4,3.0]
[1744694332071,0.40638506,1642.5,1642.3,0.7772]
[1744694332971,0.40638506,1642.5,1642.3,6.86621]